bitfinex/quotes_SOLUSD_20250429
["timestamp","ask_amount","ask_price","bid_price","bid_amount"]
[1745964900635,0.063,146.85,146.83,14.31090638]
[1745964902469,0.063,146.85,146.76,21.99259833]
[1745964902660,19.21829514,146.84,146.81,14.31090638]
[1745964903661,19.21829514,146.84,146.81,22.87078723]
[1745964903975,19.21829514,146.84,146.77,26.0]
[1745964904149,19.21829514,146.84,146.81,22.87078723]
[1745964904550,27.39646606,146.84,146.81,22.87078723]
[1745964904768,27.39646606,146.84,146.8,22.87078723]
[1745964905159,50.26725329,146.84,146.79,22.87078723]
[1745964906050,19.21829514,146.82,146.79,22.87078723]
[1745964906780,19.21829514,146.82,146.78,22.87078723]
[1745964906960,19.21829514,146.82,146.75,26.0]
[1745964906961,45.05729374,146.82,146.75,26.0]
[1745964907159,58.65729374,146.82,146.77,22.87078723]
[1745964907580,65.46866401,146.82,146.78,22.87078723]
[1745964907983,65.46866401,146.82,146.77,22.87078723]
[1745964908879,65.46866401,146.82,146.78,22.87078723]
[1745964909387,0.14216157,146.79,146.75,22.87078723]
[1745964909576,19.21829514,146.77,146.76,22.87078723]
[1745964911296,18.79181043,146.81,146.76,22.87078723]
[1745964911479,0.42648471,146.8,146.79,22.87078723]
[1745964912800,18.79181043,146.81,146.79,22.87078723]
[1745964912981,13.6,146.82,146.8,22.87078723]
[1745964913288,0.14216157,146.83,146.81,22.87078723]
[1745964913488,0.56864628,146.83,146.82,22.87078723]
[1745964913664,18.79181043,146.83,146.82,22.87078723]
[1745964913977,19.21829514,146.83,146.82,22.87078723]
[1745964914163,18.933972,146.83,146.82,22.87078723]
[1745964914484,19.21829514,146.83,146.82,22.87078723]
[1745964914664,0.063,146.85,146.82,22.87078723]
[1745964914870,18.85481043,146.85,146.84,22.87078723]
[1745964915069,19.28129514,146.85,146.84,22.87078723]
[1745964915287,18.996972,146.85,146.84,22.87078723]
[1745964915583,0.42648471,146.84,146.83,22.87078723]
[1745964919087,0.42648471,146.84,146.79,22.87078723]
[1745964919390,0.42648471,146.84,146.81,22.87078723]
[1745964925390,0.42648471,146.84,146.82,22.87078723]
[1745964925579,19.21829514,146.84,146.83,14.2902912]
[1745964926602,0.56864628,146.84,146.83,14.2902912]
[1745964927095,0.063,146.85,146.83,14.2902912]
[1745964927290,0.063,146.85,146.84,14.2902912]
[1745964928698,0.063,146.85,146.84,35.39071587]
[1745964929503,0.063,146.85,146.84,52.50204063]
[1745964929872,0.063,146.85,146.84,53.86357386]
[1745964931092,0.063,146.85,146.84,31.01762028]
[1745964931983,0.063,146.85,146.84,53.86357386]
[1745964933002,0.063,146.86,146.84,53.86357386]
[1745964933188,0.063,146.86,146.85,45.69190716]
[1745964933387,0.063,146.87,146.86,26.0]
[1745964933591,0.063,146.88,146.86,88.17845664]
[1745964933779,0.063,146.88,146.87,22.84595358]
[1745964934907,0.063,146.88,146.87,29.654696]
[1745964935402,0.063,146.88,146.87,22.84595358]
[1745964936517,0.063,146.88,146.87,29.654696]
[1745964936986,0.063,146.89,146.88,26.0]
[1745964937174,0.063,146.89,146.88,48.84595358]
[1745964937682,0.063,146.93,146.88,48.84595358]
[1745964938003,0.063,146.93,146.89,24.20695133]
[1745964938306,0.063,146.93,146.9,22.84595358]
[1745964939482,0.20516157,146.92,146.9,22.84595358]
[1745964940910,0.48948471,146.91,146.9,22.84595358]
[1745964941119,0.14216157,146.9,146.88,26.0]
[1745964941290,0.14216157,146.9,146.89,22.84595358]
[1745964941800,0.063,146.91,146.89,22.84595358]
[1745964942002,0.063,146.91,146.9,22.84595358]
[1745964944101,0.063,146.91,146.9,29.65330552]
[1745964945224,0.063,146.91,146.9,22.84595358]
[1745964946715,0.34732314,146.91,146.86,1.5253]
[1745964947028,0.48948471,146.91,146.89,22.84595358]
[1745964947207,0.063,146.91,146.9,60.93870716]
[1745964947412,0.063,146.93,146.9,65.45428953]
[1745964947594,0.063,146.93,146.92,22.84595358]
[1745964948797,0.34732314,146.93,146.92,22.84595358]
[1745964949010,0.63164628,146.93,146.91,22.84595358]
[1745964950624,0.63164628,146.93,146.92,22.84595358]
[1745964950811,0.48948471,146.93,146.92,22.84595358]
[1745964951012,0.20516157,146.93,146.92,22.84595358]
[1745964957623,0.20516157,146.93,146.92,14.26996975]
[1745964958638,0.063,146.93,146.92,35.34636476]
[1745964959434,0.063,146.96,146.92,35.34636476]
[1745964959632,0.063,146.96,146.95,14.26996975]
[1745964961729,0.063,146.96,146.95,22.81721335]
[1745964962515,0.063,146.96,146.95,29.62224907]
[1745964964760,0.063,146.96,146.91,21.10031189]
[1745964964939,0.063,146.96,146.95,22.81721335]
[1745964966923,0.063,146.96,146.95,29.62224907]
[1745964967343,0.063,146.96,146.95,22.81721335]
[1745964968058,0.063,146.96,146.95,29.62224907]
[1745964968758,0.063,146.96,146.92,6.80622803]
[1745964968962,0.063,146.96,146.95,22.81721335]
[1745964973890,0.063,146.96,146.95,29.62224907]
[1745964974159,0.063,146.96,146.95,22.81721335]
[1745964975441,0.063,146.96,146.95,29.62224907]
[1745964977165,0.03,146.97,146.95,55.62224907]
[1745964977454,0.03,146.97,146.96,22.81721335]
[1745964977679,0.03,146.97,146.96,24.17762532]
[1745964978371,0.03,146.97,146.96,30.98219799]
[1745964978549,0.063,146.99,146.98,26.0]
[1745964978754,0.063,146.99,146.98,71.6344267]
[1745964979371,0.063,147.01,146.98,71.6344267]
[1745964979672,0.063,147.01,147.0,45.6344267]
[1745964980455,0.063,147.01,147.0,52.43714778]
[1745964981578,0.03,147.02,147.0,35.29505484]
[1745964981758,0.03,147.02,147.01,14.24616688]
[1745964986461,0.03,147.02,147.01,21.04842522]
[1745964988290,0.03,147.06,147.04,26.0]
[1745964988473,0.03,147.06,147.05,14.24616688]
[1745964990199,0.03,147.06,147.04,26.0]
[1745964990367,0.03,147.06,147.05,14.24616688]
[1745964997162,0.03,147.06,147.05,21.0465749]
[1745964997374,0.03,147.06,147.05,14.24616688]
[1745964998771,0.03,147.06,147.05,35.29274178]
[1745964999066,0.03,147.08,147.05,35.29274178]
[1745964999280,0.03,147.08,147.07,28.49233376]
[1745965001665,0.03,147.08,147.07,35.29181699]
[1745965001969,0.03,147.08,147.07,28.49233376]
[1745965002188,0.03,147.08,147.07,14.24616688]
[1745965005186,0.03,147.08,147.07,28.49233376]
[1745965007390,0.03,147.08,147.07,14.24616688]
[1745965009208,0.03,147.08,147.02,32.80171985]
[1745965009408,0.03,147.08,147.04,26.0]
[1745965009587,0.03,147.08,147.06,14.24616688]
[1745965011377,25.33089514,147.07,147.01,26.0]
[1745965011584,39.57706202,147.07,147.03,14.24616688]
[1745965012114,25.33089514,147.07,147.06,14.24616688]
[1745965012471,25.33089514,147.07,147.05,14.24616688]
[1745965012677,25.33089514,147.07,147.04,14.24616688]
[1745965012976,25.33089514,147.07,147.0,14.24616688]
[1745965013184,46.37678135,147.07,147.03,14.24616688]
[1745965015303,32.13061447,147.07,147.03,14.24616688]
[1745965015491,39.57706202,147.07,147.03,14.24616688]
[1745965020208,39.43490045,147.07,147.03,14.24616688]
[1745965021909,0.14216157,147.06,147.04,14.24616688]
[1745965022115,18.79181043,147.07,147.05,14.24616688]
[1745965022298,18.79181043,147.07,147.06,14.24616688]
[1745965022495,19.21829514,147.07,147.05,14.24616688]
[1745965022810,0.42648471,147.06,147.05,14.24616688]
[1745965023015,0.42648471,147.06,147.04,14.24616688]
[1745965023200,0.42648471,147.06,147.03,14.24616688]
[1745965023793,0.28432314,147.06,147.03,14.24616688]
[1745965024007,0.42648471,147.06,147.03,14.24616688]
[1745965024413,0.42648471,147.06,147.04,14.24616688]
[1745965025316,0.42648471,147.06,147.05,14.24616688]
[1745965027308,0.14216157,147.06,147.05,14.24616688]
[1745965028291,0.14216157,147.05,146.99,26.0]
[1745965028494,0.14216157,147.04,146.99,26.0]
[1745965028693,0.14216157,147.02,147.01,14.24616688]
[1745965029534,0.28432314,147.02,147.01,14.24616688]
[1745965031717,18.79181043,147.07,147.01,14.24616688]
[1745965031919,18.79181043,147.07,147.05,14.24616688]
[1745965032104,0.14216157,147.06,147.05,14.24616688]
[1745965032309,0.42648471,147.06,147.05,14.24616688]
[1745965032834,18.79181043,147.07,147.05,14.24616688]
[1745965033123,19.21829514,147.07,147.06,14.24616688]
[1745965034500,0.28432314,147.07,147.06,14.24616688]
[1745965034905,0.14216157,147.07,147.06,14.24616688]
[1745965035216,0.03,147.08,147.06,14.24616688]
[1745965035419,0.03,147.08,147.07,14.24616688]
[1745965038008,0.03,147.08,147.07,28.49233376]
[1745965039120,0.03,147.08,147.07,14.24616688]
[1745965040518,0.03,147.08,147.06,14.24616688]
[1745965040718,0.03,147.08,147.03,1.6237]
[1745965040719,0.17216157,147.08,147.05,14.24616688]
[1745965041033,0.17216157,147.08,147.07,14.24616688]
[1745965042220,0.03,147.08,147.07,14.24616688]
[1745965042728,0.03,147.08,147.07,28.49233376]
[1745965042913,0.03,147.08,147.07,14.24616688]
[1745965045234,0.03,147.08,147.04,26.0]
[1745965045408,0.03,147.08,147.05,14.24616688]
[1745965045617,0.03,147.08,147.04,14.24616688]
[1745965045836,19.21829514,147.07,147.03,14.24616688]
[1745965046141,19.21829514,147.07,147.04,14.24616688]
[1745965046444,40.2640248,147.07,147.03,14.24616688]
[1745965046640,33.46446202,147.07,147.03,14.24616688]
[1745965047539,42.02263661,147.07,147.03,22.80434147]
[1745965048447,48.82215835,147.07,147.03,22.80434147]
[1745965048973,0.28432314,147.03,147.0,22.80434147]
[1745965049128,0.28432314,147.03,146.99,22.86734147]
[1745965050118,42.02263661,147.03,146.99,22.86734147]
[1745965051314,19.21829514,147.03,146.99,22.86734147]
[1745965051516,55.60263661,147.03,146.99,22.86734147]
[1745965051714,55.60263661,147.03,146.99,0.063]
[1745965051949,0.28432314,147.01,146.99,0.063]
[1745965055064,19.21829514,147.01,146.99,0.063]
[1745965055248,42.02263661,147.01,146.99,0.063]
[1745965055454,20.58620651,147.0,146.99,0.063]
[1745965056753,19.21829514,147.0,146.99,0.063]
[1745965058174,19.21829514,147.0,146.99,22.86734147]
[1745965058480,0.28432314,147.0,146.99,22.86734147]
[1745965059761,0.14216157,147.0,146.99,22.86734147]
[1745965060075,0.14216157,147.02,146.99,22.86734147]
[1745965060253,0.28432314,147.02,147.01,22.80434147]
[1745965060980,0.28432314,147.02,146.99,0.063]
[1745965061173,19.21829514,147.02,146.99,0.063]
[1745965061574,0.28432314,147.0,146.99,0.063]
[1745965062472,42.02263661,147.0,146.99,0.063]
[1745965063070,48.82535769,147.0,146.99,0.063]
[1745965065086,74.82535769,147.0,146.99,0.063]
[1745965065596,97.62969916,147.0,146.99,0.063]
[1745965066292,74.82535769,147.0,146.99,0.063]
[1745965067291,97.62969916,147.0,146.99,0.063]
[1745965067495,97.62969916,147.0,146.97,0.063]
[1745965067496,45.21829514,146.98,146.97,0.063]
[1745965067675,83.05054798,146.98,146.97,0.063]
[1745965067873,91.06754798,146.98,146.94,0.063]
[1745965068179,68.02263661,146.95,146.94,0.063]
[1745965068375,69.39054798,146.95,146.94,0.063]
[1745965069201,76.1955837,146.95,146.94,0.063]
[1745965069700,67.67074288,146.95,146.94,0.063]
[1745965069899,59.49779579,146.95,146.94,0.063]
[1745965070077,67.67074288,146.95,146.94,0.063]
[1745965071100,67.67074288,146.95,146.93,0.063]
[1745965071101,19.21829514,146.94,146.93,0.063]
[1745965071295,40.30329463,146.94,146.93,0.063]
[1745965071606,48.87218148,146.94,146.93,0.063]
[1745965073003,45.21829514,146.92,146.91,0.063]
[1745965073188,83.09459401,146.92,146.91,0.063]
[1745965073384,89.90101927,146.92,146.91,0.063]
[1745965076010,60.24620651,146.92,146.91,0.063]
[1745965076299,59.8197218,146.92,146.91,0.063]
[1745965076598,32.45181043,146.92,146.91,0.063]
[1745965076808,32.87829514,146.92,146.91,0.063]
[1745965076974,34.24620651,146.92,146.91,0.063]
[1745965077179,63.90101927,146.92,146.91,0.063]
[1745965077399,57.09459401,146.92,146.91,0.063]
[1745965078271,33.8197218,146.92,146.91,0.063]
[1745965078491,32.45181043,146.92,146.91,0.063]
[1745965078687,32.87829514,146.92,146.91,0.063]
[1745965079792,32.593972,146.92,146.91,0.063]
[1745965080088,62.5331079,146.92,146.91,0.063]
[1745965080585,19.21829514,146.91,146.9,0.063]
[1745965080798,43.43459401,146.91,146.9,0.063]
[1745965081110,20.58620651,146.91,146.9,0.063]
[1745965081603,43.43459401,146.91,146.9,0.063]
[1745965082092,50.24148258,146.91,146.9,0.063]
[1745965084610,20.1597218,146.91,146.9,0.063]
[1745965085321,43.43459401,146.91,146.9,0.063]
[1745965087212,20.58620651,146.91,146.9,0.063]
[1745965087419,19.21829514,146.91,146.9,0.063]
[1745965087712,18.79181043,146.91,146.9,22.9113875]
[1745965088101,19.21829514,146.91,146.9,22.9113875]
[1745965088819,18.79181043,146.93,146.9,22.9113875]
[1745965089110,19.21829514,146.92,146.91,22.8483875]
[1745965089623,19.21829514,146.92,146.9,0.063]
[1745965090110,19.21829514,146.92,146.9,22.9113875]
[1745965090720,19.07613357,146.91,146.9,0.063]
[1745965091104,0.42648471,146.91,146.9,0.063]
[1745965091927,0.42648471,146.91,146.9,22.9113875]
[1745965092224,0.28432314,146.91,146.9,0.063]
[1745965092423,42.06668264,146.91,146.9,0.063]
[1745965092605,48.87357121,146.91,146.9,0.063]
[1745965092810,42.06668264,146.91,146.9,0.063]
[1745965093120,62.59357121,146.91,146.9,0.063]
[1745965093823,55.78668264,146.91,146.9,0.063]
[1745965094134,57.15459401,146.91,146.9,0.063]
[1745965094542,44.79181043,146.89,146.88,0.063]
[1745965094830,50.24240938,146.89,146.88,0.063]
[1745965095215,43.43459401,146.89,146.88,0.063]
[1745965095415,50.24240938,146.89,146.88,0.063]
[1745965097230,20.44404494,146.89,146.88,0.063]
[1745965097529,43.29243244,146.89,146.88,0.063]
[1745965098028,43.43459401,146.89,146.88,0.063]
[1745965099008,46.58620651,146.89,146.88,0.063]
[1745965100603,69.43459401,146.89,146.88,0.063]
[1745965101425,19.21829514,146.88,146.87,0.063]
[1745965101627,42.06668264,146.88,146.87,0.063]
[1745965102925,19.21829514,146.88,146.87,0.063]
[1745965103735,42.06668264,146.88,146.87,0.063]
[1745965104108,19.21829514,146.88,146.87,0.063]
[1745965106023,42.06668264,146.88,146.87,0.063]
[1745965106411,19.21829514,146.88,146.87,0.063]
[1745965106611,42.06668264,146.88,146.87,0.063]
[1745965107535,19.21829514,146.88,146.87,0.063]
[1745965108736,42.06668264,146.88,146.87,0.063]
[1745965111523,33.50811651,146.88,146.87,0.063]
[1745965113551,19.21829514,146.88,146.87,0.063]
[1745965113715,18.79181043,146.88,146.87,0.063]
[1745965114250,19.21829514,146.88,146.87,0.063]
[1745965114548,19.21829514,146.88,146.87,14.35282137]
[1745965114842,18.79181043,146.9,146.87,14.35282137]
[1745965115042,19.21829514,146.89,146.88,14.28982137]
[1745965115414,19.21829514,146.89,146.87,14.35282137]
[1745965118244,19.21829514,146.89,146.88,14.28982137]
[1745965118632,19.07613357,146.91,146.88,14.28982137]
[1745965118939,0.14216157,146.9,146.87,0.063]
[1745965119644,0.14216157,146.88,146.87,0.063]
[1745965120116,0.14216157,146.88,146.87,14.35282137]
[1745965125645,14.28982137,146.92,146.87,14.35282137]
[1745965125842,19.21829514,146.93,146.9,14.28982137]
[1745965126552,19.21829514,146.93,146.91,14.28982137]
[1745965128134,19.21829514,146.93,146.87,0.063]
[1745965128336,19.21829514,146.93,146.9,14.28982137]
[1745965131260,19.21829514,146.93,146.89,14.28982137]
[1745965131569,33.50811651,146.93,146.89,14.28982137]
[1745965132052,19.21829514,146.93,146.89,14.28982137]
[1745965132245,19.21829514,146.93,146.9,14.28982137]
[1745965133147,19.21829514,146.93,146.89,14.28982137]
[1745965135248,33.50811651,146.91,146.87,0.063]
[1745965135444,0.42648471,146.89,146.87,0.063]
[1745965135945,19.21829514,146.89,146.87,0.063]
[1745965140445,0.42648471,146.89,146.87,14.35282137]
[1745965141565,26.0,146.94,146.88,14.28982137]
[1745965141741,18.79181043,146.94,146.91,14.28982137]
[1745965142056,0.42648471,146.93,146.91,14.28982137]
[1745965144763,13.75,146.95,146.92,14.28982137]
[1745965145070,0.59864628,146.95,146.93,14.28982137]
[1745965145244,0.03,146.95,146.88,6.80826191]
[1745965145458,0.03,146.95,146.94,14.28982137]
[1745965145762,0.17216157,146.95,146.87,6.87160811]
[1745965146078,0.42648471,146.93,146.89,14.28982137]
[1745965146241,0.42648471,146.89,146.87,0.063]
[1745965146751,0.56864628,146.89,146.87,0.063]
[1745965148978,0.56864628,146.89,146.87,14.35282137]
[1745965150656,0.56864628,146.89,146.87,0.063]
[1745965153079,0.56864628,146.89,146.88,14.28982137]
[1745965153257,18.933972,146.93,146.88,14.28982137]
[1745965153450,0.14216157,146.91,146.88,14.28982137]
[1745965153767,0.42648471,146.91,146.88,14.28982137]
[1745965155079,15.65773274,146.94,146.89,14.28982137]
[1745965155245,18.79181043,146.93,146.9,14.28982137]
[1745965155443,0.42648471,146.92,146.9,14.28982137]
[1745965155643,0.42648471,146.92,146.89,14.28982137]
[1745965156168,0.42648471,146.92,146.9,14.28982137]
[1745965156771,0.42648471,146.93,146.91,14.28982137]
[1745965157150,0.28432314,146.94,146.92,14.28982137]
[1745965157357,0.56864628,146.94,146.92,14.28982137]
[1745965157663,0.42648471,146.94,146.92,14.28982137]
[1745965158182,0.56864628,146.94,146.92,14.28982137]
[1745965158571,0.42648471,146.92,146.9,14.28982137]
[1745965159176,0.42648471,146.92,146.89,14.28982137]
[1745965159647,0.42648471,146.9,146.87,1.6091]
[1745965159847,0.42648471,146.9,146.87,15.89892137]
[1745965160171,0.56864628,146.9,146.87,14.35282137]
[1745965160368,0.42648471,146.88,146.87,0.063]
[1745965163480,34.87602788,146.88,146.87,0.063]
[1745965163651,41.68430674,146.88,146.87,0.063]
[1745965164356,67.68430674,146.88,146.87,0.063]
[1745965165975,41.68430674,146.88,146.87,0.063]
[1745965166658,42.68430674,146.88,146.87,0.063]
[1745965166867,41.68430674,146.88,146.87,0.063]
[1745965167172,42.68430674,146.88,146.87,0.063]
[1745965167375,41.68430674,146.88,146.87,0.063]
[1745965167552,20.30188337,146.88,146.87,0.063]
[1745965167760,0.14216157,146.88,146.87,0.063]
[1745965167975,13.62,146.9,146.87,14.35282137]
[1745965168153,10.84611167,146.89,146.88,14.21402125]
[1745965168884,0.56864628,146.89,146.88,14.21402125]
[1745965169582,0.56864628,146.89,146.88,22.850085]
[1745965169769,0.42648471,146.89,146.88,22.850085]
[1745965169968,0.56864628,146.89,146.88,22.850085]
[1745965170266,0.14216157,146.88,146.87,22.913085]
[1745965170781,0.14216157,146.88,146.87,0.063]
[1745965170968,0.14216157,146.88,146.87,22.913085]
[1745965172500,13.62,146.9,146.87,22.913085]
[1745965172801,0.14216157,146.92,146.89,22.850085]
[1745965172965,0.56864628,146.92,146.9,22.850085]
[1745965174377,0.14216157,146.9,146.87,0.063]
[1745965174565,0.14216157,146.88,146.87,0.063]
[1745965180393,19.07613357,146.88,146.87,0.063]
[1745965180576,42.06838014,146.88,146.87,0.063]
[1745965180886,48.876659,146.88,146.87,0.063]
[1745965181598,42.06838014,146.88,146.87,0.063]
[1745965181886,19.21829514,146.88,146.87,0.063]
[1745965182186,42.06838014,146.88,146.87,0.063]
[1745965184389,48.876659,146.88,146.87,0.063]
[1745965188591,26.28432314,146.83,146.82,0.063]
[1745965188888,26.28432314,146.83,146.78,0.063]
[1745965188889,0.42648471,146.81,146.78,0.063]
[1745965189186,0.14216157,146.79,146.78,0.063]
[1745965189387,0.14216157,146.79,146.78,22.913085]
[1745965190592,0.14216157,146.79,146.78,0.063]
[1745965190768,67.784057,146.79,146.78,0.063]
[1745965191384,74.8808333,146.79,146.78,0.063]
[1745965194673,68.06838014,146.79,146.78,0.063]
[1745965197087,76.24874467,146.79,146.78,0.063]
[1745965199702,99.09882967,146.79,146.78,0.063]
[1745965200200,106.85392967,146.79,146.78,0.063]
[1745965201206,76.24874467,146.79,146.78,0.063]
[1745965202074,19.21829514,146.78,146.77,0.03]
[1745965202391,55.68838014,146.78,146.77,0.03]
[1745965202996,62.50129743,146.78,146.77,0.03]
[1745965209506,53.96417863,146.78,146.77,0.03]
[1745965210682,54.96417863,146.78,146.77,0.03]
[1745965211005,0.28432314,146.74,146.73,0.03]
[1745965211182,75.21213891,146.74,146.73,0.03]
[1745965211377,33.53126134,146.73,146.72,0.063]
[1745965211579,19.21829514,146.73,146.72,0.063]
[1745965212602,18.933972,146.73,146.72,0.063]
[1745965212993,0.28432314,146.73,146.72,0.063]
[1745965213195,18.79181043,146.75,146.72,22.97246251]
[1745965213402,0.14216157,146.74,146.72,0.063]
[1745965213706,0.14216157,146.74,146.72,22.97246251]
[1745965214785,0.14216157,146.74,146.73,22.90946251]
[1745965216211,0.14216157,146.74,146.72,22.97246251]
[1745965216708,0.14216157,146.74,146.73,22.90946251]
[1745965217513,0.14216157,146.74,146.72,22.97246251]
[1745965222111,0.14216157,146.74,146.73,22.90946251]
[1745965224117,0.28432314,146.75,146.73,22.90946251]
[1745965224316,0.28432314,146.75,146.74,22.90946251]
[1745965224522,13.62,146.77,146.74,22.90946251]
[1745965224709,13.62,146.77,146.75,22.90946251]
[1745965224903,18.79181043,146.76,146.73,22.90946251]
[1745965225209,0.14216157,146.75,146.73,22.90946251]
[1745965226110,0.14216157,146.75,146.74,22.90946251]
[1745965231603,0.14216157,146.75,146.74,14.30824169]
[1745965233729,0.42648471,146.75,146.72,14.37124169]
[1745965233946,0.28432314,146.74,146.72,0.063]
[1745965234105,0.28432314,146.73,146.72,0.063]
[1745965235030,20.58620651,146.73,146.72,0.063]
[1745965235710,19.21829514,146.73,146.72,0.063]
[1745965236110,18.933972,146.73,146.72,0.063]
[1745965236408,1.36791137,146.74,146.72,14.37124169]
[1745965236409,0.14216157,146.74,146.72,14.37124169]
[1745965236617,0.14216157,146.74,146.73,14.30824169]
[1745965237029,0.14216157,146.75,146.73,14.30824169]
[1745965237236,0.14216157,146.75,146.74,14.30824169]
[1745965237421,0.28432314,146.75,146.74,14.30824169]
[1745965237840,0.14216157,146.75,146.74,14.30824169]
[1745965238014,0.28432314,146.75,146.74,14.30824169]
[1745965239631,0.28432314,146.75,146.74,22.89447297]
[1745965240427,0.28432314,146.75,146.73,22.89447297]
[1745965240625,0.56864628,146.75,146.72,0.063]
[1745965240833,49.46311925,146.75,146.72,0.063]
[1745965241019,18.64964886,146.73,146.72,0.063]
[1745965241433,19.21829514,146.73,146.72,0.063]
[1745965242915,0.28432314,146.73,146.72,22.95747297]
[1745965247026,0.28432314,146.73,146.72,0.063]
[1745965248336,0.28432314,146.73,146.72,22.95747297]
[1745965251660,18.64964886,146.75,146.72,22.95747297]
[1745965251846,0.28432314,146.74,146.72,0.063]
[1745965252140,18.933972,146.74,146.72,0.063]
[1745965252525,1.93655765,146.73,146.72,0.063]
[1745965253046,43.48067948,146.73,146.72,0.063]
[1745965253656,50.29591835,146.73,146.72,0.063]
[1745965254423,43.48067948,146.73,146.72,0.063]
[1745965258564,50.29591835,146.73,146.72,0.063]
[1745965261666,18.933972,146.72,146.71,0.03]
[1745965261949,78.62724108,146.72,146.71,0.03]
[1745965263060,85.44294446,146.72,146.71,0.03]
[1745965264160,81.3062834,146.72,146.71,0.03]
[1745965264531,81.73276811,146.72,146.71,0.03]
[1745965264860,81.59060654,146.72,146.71,0.03]
[1745965265059,81.73276811,146.72,146.71,0.03]
[1745965265655,73.16196475,146.72,146.71,0.03]
[1745965268336,61.48563436,146.72,146.71,0.03]
[1745965268541,68.30133774,146.72,146.71,0.03]
[1745965271162,0.42648471,146.68,146.6,20.98656961]
[1745965271355,19.21829514,146.66,146.62,14.32366961]
[1745965271668,19.21829514,146.66,146.63,22.92953897]
[1745965272948,19.21829514,146.66,146.62,22.92953897]
[1745965274190,19.21829514,146.66,146.65,0.03]
[1745965276865,19.21829514,146.66,146.65,22.95953897]
[1745965276866,18.933972,146.66,146.65,22.95953897]
[1745965277168,18.79181043,146.66,146.65,22.95953897]
[1745965277341,18.933972,146.66,146.65,0.03]
[1745965289287,18.933972,146.66,146.65,22.95953897]
[1745965290197,18.933972,146.66,146.65,0.03]
[1745965291380,18.933972,146.66,146.65,22.95953897]
[1745965291581,18.933972,146.66,146.65,14.3582466]
[1745965293102,1.36791137,146.68,146.65,14.3582466]
[1745965293276,0.063,146.72,146.65,14.3582466]
[1745965293277,0.14216157,146.69,146.67,14.3282466]
[1745965293478,13.62,146.7,146.68,14.3282466]
[1745965293791,13.76216157,146.7,146.69,14.3282466]
[1745965294177,13.90432314,146.7,146.69,14.3282466]
[1745965295490,32.553972,146.7,146.69,14.3282466]
[1745965298998,18.933972,146.69,146.68,14.3282466]
[1745965299297,0.28432314,146.67,146.65,0.03]
[1745965301106,0.28432314,146.67,146.65,14.3582466]
[1745965301487,0.56864628,146.69,146.66,14.3282466]
[1745965302599,0.56864628,146.69,146.65,14.3582466]
[1745965302914,0.56864628,146.67,146.65,14.3582466]
[1745965303082,18.64964886,146.66,146.65,0.03]
[1745965304808,33.54654174,146.66,146.65,0.03]
[1745965305103,19.21829514,146.66,146.65,0.03]
[1745965305498,18.64964886,146.64,146.63,11.3582466]
[1745965306104,13.76216157,146.65,146.63,11.3582466]
[1745965306404,0.28432314,146.64,146.61,1.6491]
[1745965307506,0.28432314,146.64,146.63,14.3282466]
[1745965308507,18.933972,146.64,146.62,14.3282466]
[1745965309713,18.933972,146.64,146.63,14.3282466]
[1745965309897,0.28432314,146.64,146.63,14.3282466]
[1745965312509,0.28432314,146.64,146.63,14.3282466]
[1745965313886,18.933972,146.64,146.63,14.3282466]
[1745965318521,0.14216157,146.64,146.63,14.3282466]
[1745965318817,13.62,146.65,146.63,14.3282466]
[1745965318995,13.76216157,146.65,146.64,14.3282466]
[1745965324317,0.14216157,146.65,146.64,14.3282466]
[1745965326620,0.14216157,146.65,146.61,1.6491]
[1745965326794,0.14216157,146.65,146.64,14.3282466]
[1745965327125,0.42648471,146.66,146.63,14.3282466]
[1745965328223,0.56864628,146.66,146.64,14.3282466]
[1745965328517,0.56864628,146.66,146.61,1.6491]
[1745965328518,0.28432314,146.66,146.65,14.3282466]
[1745965328925,19.21829514,146.66,146.59,0.03]
[1745965329096,0.14216157,146.63,146.59,0.03]
[1745965329420,0.14216157,146.63,146.62,14.3282466]
[1745965329803,0.14216157,146.64,146.62,14.3282466]
[1745965330013,0.14216157,146.64,146.63,14.3282466]
[1745965330411,18.64964886,146.66,146.63,14.3282466]